[Event "Titled Tuesday Blitz August 15 Late 2023"]
[White "ExchangeAB"]
[Black "Remizov, Yaroslav"]
[BlackFideId "34134015"]
[WhiteElo "2443"]
[BlackElo "2843"]
[Result "0-1"]
[Round "1"]
[TimeControl "180+1"]
[Date "2023.08.15"]
[WhiteClock "0:00:43"]
[BlackClock "0:01:09"]
[Board "47"]

1. d4 {[%clk 0:03:00]}  e6 {[%clk 0:02:56]} 2. e4 {[%clk 0:02:58]}  d5 {[%clk 0:02:56]} 3. e5 {[%clk 0:02:57]}  c5 {[%clk 0:02:56]} 4. c3 {[%clk 0:02:57]}  Nc6 {[%clk 0:02:56]} 5. Nf3 {[%clk 0:02:57]}  Qb6 {[%clk 0:02:55]} 6. a3 {[%clk 0:02:56]}  Nh6 {[%clk 0:02:54]} 7. b4 {[%clk 0:02:51]}  cxd4 {[%clk 0:02:54]} 8. cxd4 {[%clk 0:02:50]}  Nf5 {[%clk 0:02:54]} 9. Bb2 {[%clk 0:02:46]}  Be7 {[%clk 0:02:51]} 10. Be2 {[%clk 0:02:43]}  Bd7 {[%clk 0:02:50]} 11. O-O {[%clk 0:02:43]}  O-O {[%clk 0:02:50]} 12. g4 {[%clk 0:02:26]}  Nh4 {[%clk 0:02:49]} 13. Nxh4 {[%clk 0:02:25]}  Bxh4 {[%clk 0:02:50]} 14. f4 {[%clk 0:02:16]}  f6 {[%clk 0:02:45]} 15. Kg2 {[%clk 0:02:09]}  fxe5 {[%clk 0:02:27]} 16. dxe5 {[%clk 0:01:59]}  g5 {[%clk 0:02:11]} 17. b5 {[%clk 0:01:55]}  Rxf4 {[%clk 0:02:03]} 18. Rxf4 {[%clk 0:01:50]}  gxf4 {[%clk 0:02:04]} 19. Nd2 {[%clk 0:01:45]}  Qf2+ {[%clk 0:01:55]} 20. Kh1 {[%clk 0:01:44]}  Nd4 {[%clk 0:01:52]} 21. Bxd4 {[%clk 0:01:37]}  Qxd4 {[%clk 0:01:53]} 22. Nf3 {[%clk 0:01:29]}  Qxd1+ {[%clk 0:01:53]} 23. Rxd1 {[%clk 0:01:30]}  Be7 {[%clk 0:01:53]} 24. Rc1 {[%clk 0:01:27]}  Rc8 {[%clk 0:01:49]} 25. Rxc8+ {[%clk 0:01:26]}  Bxc8 {[%clk 0:01:50]} 26. a4 {[%clk 0:01:27]}  Bd7 {[%clk 0:01:47]} 27. Kg2 {[%clk 0:01:27]}  Be8 {[%clk 0:01:40]} 28. Nd4 {[%clk 0:01:24]}  Kf7 {[%clk 0:01:36]} 29. Kf3 {[%clk 0:01:24]}  Bg5 {[%clk 0:01:33]} 30. Bd3 {[%clk 0:01:21]}  h6 {[%clk 0:01:32]} 31. h3 {[%clk 0:01:19]}  Ke7 {[%clk 0:01:32]} 32. Bc2 {[%clk 0:01:17]}  a6 {[%clk 0:01:30]} 33. Bd3 {[%clk 0:01:17]}  axb5 {[%clk 0:01:29]} 34. axb5 {[%clk 0:01:18]}  Bd7 {[%clk 0:01:26]} 35. Ne2 {[%clk 0:01:18]}  Kd8 {[%clk 0:01:24]} 36. Nxf4 {[%clk 0:01:18]}  Kc7 {[%clk 0:01:24]} 37. Ng6 {[%clk 0:01:17]}  Kb6 {[%clk 0:01:21]} 38. h4 {[%clk 0:01:17]}  Bc1 {[%clk 0:01:19]} 39. Nf4 {[%clk 0:01:17]}  Kc5 {[%clk 0:01:11]} 40. g5 {[%clk 0:01:17]}  hxg5 {[%clk 0:01:11]} 41. hxg5 {[%clk 0:01:18]}  Bb2 {[%clk 0:01:11]} 42. g6 {[%clk 0:00:53]}  Bxe5 {[%clk 0:01:10]} 43. Nh5 {[%clk 0:00:53]}  Be8 {[%clk 0:01:09]} 44. g7 {[%clk 0:00:43]}  Bxh5+ {[%clk 0:01:09]} 0-1


[Site "https://www.chess.com"]

[Event "Titled Tuesday Blitz August 15 Late 2023"]
[White "Klukin, Kirill"]
[Black "Buchenau, Frank"]
[WhiteFideId "24199273"]
[BlackFideId "4604350"]
[WhiteElo "2830"]
[BlackElo "2435"]
[Result "1-0"]
[Round "1"]
[TimeControl "180+1"]
[Date "2023.08.15"]
[WhiteClock "0:01:32"]
[BlackClock "0:00:13"]
[Board "50"]

1. d4 {[%clk 0:03:00]}  e6 {[%clk 0:02:59]} 2. c4 {[%clk 0:02:59]}  Nf6 {[%clk 0:03:00]} 3. Nc3 {[%clk 0:02:59]}  Bb4 {[%clk 0:02:59]} 4. e3 {[%clk 0:03:00]}  O-O {[%clk 0:02:58]} 5. Bd2 {[%clk 0:02:58]}  b6 {[%clk 0:02:57]} 6. Nf3 {[%clk 0:02:57]}  Bb7 {[%clk 0:02:57]} 7. Bd3 {[%clk 0:02:58]}  c5 {[%clk 0:02:57]} 8. a3 {[%clk 0:02:54]}  Bxc3 {[%clk 0:02:56]} 9. Bxc3 {[%clk 0:02:55]}  Ne4 {[%clk 0:02:55]} 10. Rc1 {[%clk 0:02:55]}  d6 {[%clk 0:02:51]} 11. O-O {[%clk 0:02:55]}  Nd7 {[%clk 0:02:50]} 12. Be1 {[%clk 0:02:54]}  f5 {[%clk 0:02:48]} 13. Nd2 {[%clk 0:02:54]}  Nxd2 {[%clk 0:02:38]} 14. Qxd2 {[%clk 0:02:55]}  Qg5 {[%clk 0:02:36]} 15. f3 {[%clk 0:02:56]}  f4 {[%clk 0:02:17]} 16. exf4 {[%clk 0:02:45]}  Qxf4 {[%clk 0:02:14]} 17. Qxf4 {[%clk 0:02:39]}  Rxf4 {[%clk 0:02:14]} 18. dxc5 {[%clk 0:02:40]}  Nxc5 {[%clk 0:02:12]} 19. Be2 {[%clk 0:02:40]}  e5 {[%clk 0:02:05]} 20. Rd1 {[%clk 0:02:38]}  Rd8 {[%clk 0:01:52]} 21. Bg3 {[%clk 0:02:32]}  Rd4 {[%clk 0:01:46]} 22. Rxd4 {[%clk 0:02:24]}  exd4 {[%clk 0:01:46]} 23. Rd1 {[%clk 0:02:25]}  d3 {[%clk 0:01:19]} 24. Bf1 {[%clk 0:02:19]}  d5 {[%clk 0:01:13]} 25. b4 {[%clk 0:01:59]}  Ne6 {[%clk 0:01:03]} 26. Rxd3 {[%clk 0:01:55]}  Kf7 {[%clk 0:00:47]} 27. cxd5 {[%clk 0:01:51]}  Rxd5 {[%clk 0:00:46]} 28. Rxd5 {[%clk 0:01:51]}  Bxd5 {[%clk 0:00:46]} 29. Be5 {[%clk 0:01:52]}  Nd8 {[%clk 0:00:39]} 30. Kf2 {[%clk 0:01:51]}  Nc6 {[%clk 0:00:39]} 31. Bc3 {[%clk 0:01:51]}  a5 {[%clk 0:00:38]} 32. b5 {[%clk 0:01:47]}  Nb8 {[%clk 0:00:33]} 33. Bd4 {[%clk 0:01:47]}  Nd7 {[%clk 0:00:33]} 34. Ke3 {[%clk 0:01:47]}  g5 {[%clk 0:00:31]} 35. Bd3 {[%clk 0:01:40]}  h6 {[%clk 0:00:21]} 36. Bf5 {[%clk 0:01:40]}  Be6 {[%clk 0:00:20]} 37. Ke4 {[%clk 0:01:37]}  Nf6+ {[%clk 0:00:17]} 38. Bxf6 {[%clk 0:01:36]}  Kxf6 {[%clk 0:00:17]} 39. Bxe6 {[%clk 0:01:36]}  Kxe6 {[%clk 0:00:18]} 40. g3 {[%clk 0:01:36]}  Kd6 {[%clk 0:00:17]} 41. f4 {[%clk 0:01:32]}  gxf4 {[%clk 0:00:16]} 42. gxf4 {[%clk 0:01:33]}  Ke6 {[%clk 0:00:16]} 43. h4 {[%clk 0:01:32]}  h5 {[%clk 0:00:16]} 44. a4 {[%clk 0:01:32]}  Kf6 {[%clk 0:00:13]} 45. f5 {[%clk 0:01:32]} 1-0


[Site "https://www.chess.com"]

[Event "Titled Tuesday Blitz August 15 Late 2023"]
[White "Maksimovic, Bojan"]
[Black "Miszler, Levente"]
[WhiteFideId "14408120"]
[BlackFideId "763276"]
[WhiteElo "2808"]
[BlackElo "2434"]
[Result "1-0"]
[Round "1"]
[TimeControl "180+1"]
[Date "2023.08.15"]
[WhiteClock "0:01:34"]
[BlackClock "0:01:21"]
[Board "52"]

1. Nf3 {[%clk 0:02:59]}  c5 {[%clk 0:02:55]} 2. g3 {[%clk 0:03:00]}  Nc6 {[%clk 0:02:54]} 3. Bg2 {[%clk 0:03:00]}  e5 {[%clk 0:02:54]} 4. d3 {[%clk 0:03:00]}  d5 {[%clk 0:02:53]} 5. O-O {[%clk 0:03:00]}  h6 {[%clk 0:02:53]} 6. e4 {[%clk 0:03:00]}  d4 {[%clk 0:02:52]} 7. Nbd2 {[%clk 0:03:00]}  g5 {[%clk 0:02:52]} 8. Nc4 {[%clk 0:03:00]}  Bg7 {[%clk 0:02:49]} 9. h4 {[%clk 0:02:59]}  g4 {[%clk 0:02:46]} 10. Nh2 {[%clk 0:02:59]}  Be6 {[%clk 0:02:35]} 11. f3 {[%clk 0:02:57]}  gxf3 {[%clk 0:02:34]} 12. Bxf3 {[%clk 0:02:57]}  Qd7 {[%clk 0:02:27]} 13. Bg4 {[%clk 0:02:56]}  O-O-O {[%clk 0:02:24]} 14. Bxe6 {[%clk 0:02:55]}  Qxe6 {[%clk 0:02:25]} 15. Qg4 {[%clk 0:02:56]}  Qxg4 {[%clk 0:02:15]} 16. Nxg4 {[%clk 0:02:57]}  f6 {[%clk 0:02:16]} 17. h5 {[%clk 0:02:42]}  b5 {[%clk 0:02:15]} 18. Nd2 {[%clk 0:02:42]}  Rf8 {[%clk 0:02:12]} 19. a4 {[%clk 0:02:42]}  a6 {[%clk 0:02:10]} 20. axb5 {[%clk 0:02:42]}  axb5 {[%clk 0:02:11]} 21. Ra8+ {[%clk 0:02:39]}  Nb8 {[%clk 0:02:10]} 22. Nb3 {[%clk 0:02:38]}  c4 {[%clk 0:02:08]} 23. Nc5 {[%clk 0:02:33]}  Ne7 {[%clk 0:02:06]} 24. Kh2 {[%clk 0:02:21]}  f5 {[%clk 0:02:05]} 25. exf5 {[%clk 0:02:17]}  Rxf5 {[%clk 0:02:03]} 26. Rxf5 {[%clk 0:02:17]}  Nxf5 {[%clk 0:02:04]} 27. Ne6 {[%clk 0:02:16]}  Rg8 {[%clk 0:02:00]} 28. Nxg7 {[%clk 0:02:06]}  Rxg7 {[%clk 0:02:01]} 29. Nxe5 {[%clk 0:02:04]}  Kb7 {[%clk 0:01:43]} 30. Ra5 {[%clk 0:01:47]}  Nxg3 {[%clk 0:01:38]} 31. Rxb5+ {[%clk 0:01:45]}  Kc7 {[%clk 0:01:38]} 32. Nxc4 {[%clk 0:01:41]}  Nf1+ {[%clk 0:01:29]} 33. Kh3 {[%clk 0:01:39]}  Rg3+ {[%clk 0:01:29]} 34. Kh4 {[%clk 0:01:39]}  Rg2 {[%clk 0:01:28]} 35. Bf4+ {[%clk 0:01:37]}  Kc6 {[%clk 0:01:28]} 36. Rxb8 {[%clk 0:01:37]}  Rxc2 {[%clk 0:01:28]} 37. Bxh6 {[%clk 0:01:35]}  Nh2 {[%clk 0:01:27]} 38. Bf4 {[%clk 0:01:34]}  Rg2 {[%clk 0:01:25]} 39. Bxh2 {[%clk 0:01:34]}  Rxh2+ {[%clk 0:01:21]} 40. Kg4 {[%clk 0:01:34]} 1-0


[Site "https://www.chess.com"]

[Event "Titled Tuesday Blitz August 15 Late 2023"]
[White "financieru"]
[Black "Mekhitarian, Krikor Sevag"]
[BlackFideId "2107660"]
[WhiteElo "2432"]
[BlackElo "2807"]
[Result "0-1"]
[Round "1"]
[TimeControl "180+1"]
[Date "2023.08.15"]
[WhiteClock "0:00:35"]
[BlackClock "0:00:35"]
[Board "53"]

1. d4 {[%clk 0:03:00]}  Nf6 {[%clk 0:02:59]} 2. c4 {[%clk 0:03:00]}  g6 {[%clk 0:02:59]} 3. Nc3 {[%clk 0:03:01]}  d5 {[%clk 0:02:59]} 4. cxd5 {[%clk 0:03:01]}  Nxd5 {[%clk 0:03:00]} 5. Na4 {[%clk 0:03:01]}  Bf5 {[%clk 0:02:52]} 6. f3 {[%clk 0:02:57]}  Nb6 {[%clk 0:02:43]} 7. e4 {[%clk 0:02:55]}  Bc8 {[%clk 0:02:37]} 8. Be3 {[%clk 0:02:51]}  Bg7 {[%clk 0:02:36]} 9. Bd3 {[%clk 0:02:40]}  O-O {[%clk 0:02:29]} 10. Ne2 {[%clk 0:02:40]}  Nc6 {[%clk 0:02:29]} 11. d5 {[%clk 0:02:35]}  Ne5 {[%clk 0:02:14]} 12. Nc5 {[%clk 0:02:33]}  Nxd3+ {[%clk 0:01:25]} 13. Nxd3 {[%clk 0:02:32]}  e6 {[%clk 0:01:25]} 14. dxe6 {[%clk 0:02:29]}  Bxe6 {[%clk 0:01:26]} 15. O-O {[%clk 0:02:28]}  Bc4 {[%clk 0:01:25]} 16. Nec1 {[%clk 0:01:32]}  Qd7 {[%clk 0:01:01]} 17. Rf2 {[%clk 0:01:29]}  Rad8 {[%clk 0:00:55]} 18. Rd2 {[%clk 0:01:27]}  Qb5 {[%clk 0:00:53]} 19. Qc2 {[%clk 0:01:18]}  Be6 {[%clk 0:00:51]} 20. a4 {[%clk 0:01:06]}  Qc4 {[%clk 0:00:45]} 21. a5 {[%clk 0:00:46]}  Qxc2 {[%clk 0:00:44]} 22. Rxc2 {[%clk 0:00:47]}  Nc4 {[%clk 0:00:44]} 23. Bg5 {[%clk 0:00:45]}  Rd7 {[%clk 0:00:37]} 24. Nc5 {[%clk 0:00:38]}  Bd4+ {[%clk 0:00:36]} 25. Kh1 {[%clk 0:00:34]}  Bxc5 {[%clk 0:00:36]} 26. b3 {[%clk 0:00:35]}  Rd1# {[%clk 0:00:35]} 0-1


[Site "https://www.chess.com"]

[Event "Titled Tuesday Blitz August 15 Late 2023"]
[White "Kuzmicz, Krystian"]
[Black "Romero Ruscalleda, Josep"]
[WhiteFideId "1119125"]
[BlackFideId "2231859"]
[WhiteElo "2805"]
[BlackElo "2431"]
[Result "0-1"]
[Round "1"]
[TimeControl "180+1"]
[Date "2023.08.15"]
[WhiteClock "0:00:20"]
[BlackClock "0:01:10"]
[Board "54"]

1. e4 {[%clk 0:03:00]}  g6 {[%clk 0:03:00]} 2. g3 {[%clk 0:03:00]}  Bg7 {[%clk 0:03:00]} 3. Bg2 {[%clk 0:03:00]}  d6 {[%clk 0:03:00]} 4. f4 {[%clk 0:03:00]}  c5 {[%clk 0:03:00]} 5. d3 {[%clk 0:02:59]}  Nc6 {[%clk 0:03:00]} 6. Nf3 {[%clk 0:02:59]}  Nf6 {[%clk 0:02:59]} 7. O-O {[%clk 0:02:58]}  O-O {[%clk 0:02:58]} 8. Nc3 {[%clk 0:02:57]}  Bd7 {[%clk 0:02:53]} 9. h3 {[%clk 0:02:57]}  Qc8 {[%clk 0:02:52]} 10. g4 {[%clk 0:02:57]}  Nd4 {[%clk 0:02:48]} 11. f5 {[%clk 0:02:54]}  Re8 {[%clk 0:02:41]} 12. Be3 {[%clk 0:02:48]}  Nxf3+ {[%clk 0:02:36]} 13. Qxf3 {[%clk 0:02:47]}  Bc6 {[%clk 0:02:35]} 14. g5 {[%clk 0:02:43]}  Nd7 {[%clk 0:02:32]} 15. h4 {[%clk 0:02:37]}  b5 {[%clk 0:02:27]} 16. h5 {[%clk 0:02:34]}  b4 {[%clk 0:02:23]} 17. fxg6 {[%clk 0:02:25]}  fxg6 {[%clk 0:02:19]} 18. Nd5 {[%clk 0:01:50]}  Ne5 {[%clk 0:02:16]} 19. Qg3 {[%clk 0:01:48]}  Qg4 {[%clk 0:02:10]} 20. Bf4 {[%clk 0:01:22]}  Qxg3 {[%clk 0:02:06]} 21. Bxg3 {[%clk 0:01:21]}  Bxd5 {[%clk 0:02:06]} 22. exd5 {[%clk 0:01:21]}  gxh5 {[%clk 0:02:06]} 23. Bh3 {[%clk 0:01:19]}  Ng4 {[%clk 0:02:05]} 24. Rab1 {[%clk 0:01:12]}  Rf8 {[%clk 0:02:01]} 25. a3 {[%clk 0:01:10]}  Bd4+ {[%clk 0:01:58]} 26. Kh1 {[%clk 0:01:09]}  Ne3 {[%clk 0:01:56]} 27. Be6+ {[%clk 0:01:08]}  Kg7 {[%clk 0:01:56]} 28. Rxf8 {[%clk 0:01:05]}  Rxf8 {[%clk 0:01:55]} 29. axb4 {[%clk 0:01:04]}  Nxc2 {[%clk 0:01:48]} 30. bxc5 {[%clk 0:01:03]}  Bxc5 {[%clk 0:01:48]} 31. Rc1 {[%clk 0:00:55]}  Ne3 {[%clk 0:01:40]} 32. d4 {[%clk 0:00:49]}  Bb6 {[%clk 0:01:33]} 33. b4 {[%clk 0:00:43]}  Rf3 {[%clk 0:01:26]} 34. Kh2 {[%clk 0:00:36]}  Nf1+ {[%clk 0:01:24]} 35. Kg2 {[%clk 0:00:34]}  Rxg3+ {[%clk 0:01:23]} 36. Kxf1 {[%clk 0:00:34]}  Rxg5 {[%clk 0:01:21]} 37. Rc8 {[%clk 0:00:34]}  Bxd4 {[%clk 0:01:15]} 38. Ke2 {[%clk 0:00:32]}  Kh6 {[%clk 0:01:14]} 39. Kf3 {[%clk 0:00:32]}  h4 {[%clk 0:01:13]} 40. Re8 {[%clk 0:00:30]}  Bf6 {[%clk 0:01:12]} 41. Ra8 {[%clk 0:00:30]}  Rg3+ {[%clk 0:01:11]} 42. Kf2 {[%clk 0:00:29]}  Rb3 {[%clk 0:01:10]} 43. Rxa7 {[%clk 0:00:20]}  Bd4+ {[%clk 0:01:10]} 0-1


[Site "https://www.chess.com"]

[Event "Titled Tuesday Blitz August 15 Late 2023"]
[White "djathtaspogradec"]
[Black "Fantastic_Power"]
[WhiteElo "2431"]
[BlackElo "2804"]
[Result "1-0"]
[Round "1"]
[TimeControl "180+1"]
[Date "2023.08.15"]
[WhiteClock "0:00:17"]
[BlackClock "0:00:00"]
[Board "55"]

1. e4 {[%clk 0:02:55]}  c5 {[%clk 0:02:58]} 2. c3 {[%clk 0:02:53]}  d5 {[%clk 0:02:57]} 3. exd5 {[%clk 0:02:54]}  Nf6 {[%clk 0:02:57]} 4. Nf3 {[%clk 0:02:55]}  Nxd5 {[%clk 0:02:55]} 5. Bc4 {[%clk 0:02:53]}  Nc6 {[%clk 0:02:54]} 6. O-O {[%clk 0:02:52]}  e6 {[%clk 0:02:50]} 7. d4 {[%clk 0:02:52]}  cxd4 {[%clk 0:02:48]} 8. Nxd4 {[%clk 0:02:51]}  Bd6 {[%clk 0:02:46]} 9. Re1 {[%clk 0:02:50]}  O-O {[%clk 0:02:43]} 10. Nxc6 {[%clk 0:02:48]}  bxc6 {[%clk 0:02:40]} 11. Nd2 {[%clk 0:02:48]}  Qc7 {[%clk 0:02:33]} 12. Nf3 {[%clk 0:02:46]}  Rb8 {[%clk 0:02:09]} 13. Bb3 {[%clk 0:02:45]}  c5 {[%clk 0:02:04]} 14. Rb1 {[%clk 0:02:27]}  Bb7 {[%clk 0:01:54]} 15. Bg5 {[%clk 0:02:25]}  h6 {[%clk 0:01:52]} 16. Bh4 {[%clk 0:02:23]}  Nf4 {[%clk 0:01:49]} 17. Bg3 {[%clk 0:02:21]}  Rbd8 {[%clk 0:01:47]} 18. Bc2 {[%clk 0:01:50]}  Qc6 {[%clk 0:01:35]} 19. Be4 {[%clk 0:01:31]}  Nd5 {[%clk 0:01:34]} 20. c4 {[%clk 0:01:27]}  Qa6 {[%clk 0:01:03]} 21. cxd5 {[%clk 0:01:24]}  exd5 {[%clk 0:01:04]} 22. Bc2 {[%clk 0:01:20]}  Bxg3 {[%clk 0:01:00]} 23. hxg3 {[%clk 0:01:19]}  d4 {[%clk 0:01:00]} 24. Qd3 {[%clk 0:01:11]}  g6 {[%clk 0:00:53]} 25. Qxa6 {[%clk 0:01:09]}  Bxa6 {[%clk 0:00:51]} 26. Rbd1 {[%clk 0:00:55]}  Rfe8 {[%clk 0:00:41]} 27. Rxe8+ {[%clk 0:00:47]}  Rxe8 {[%clk 0:00:42]} 28. Rd2 {[%clk 0:00:27]}  g5 {[%clk 0:00:38]} 29. g4 {[%clk 0:00:24]}  f6 {[%clk 0:00:22]} 30. b4 {[%clk 0:00:23]}  cxb4 {[%clk 0:00:06]} 31. Bb3+ {[%clk 0:00:23]}  Kg7 {[%clk 0:00:05]} 32. Nxd4 {[%clk 0:00:23]}  h5 {[%clk 0:00:04]} 33. gxh5 {[%clk 0:00:16]}  Kh6 {[%clk 0:00:04]} 34. g4 {[%clk 0:00:16]}  Re1+ {[%clk 0:00:02]} 35. Kh2 {[%clk 0:00:16]}  Bb7 {[%clk 0:00:02]} 36. Nf5+ {[%clk 0:00:17]}  Kh7 {[%clk 0:00:01]} 37. Rd7+ {[%clk 0:00:17]}  Kh8 {[%clk 0:00:00]} 38. Rxb7 {[%clk 0:00:17]} 1-0


[Site "https://www.chess.com"]

[Event "Titled Tuesday Blitz August 15 Late 2023"]
[White "Riehle, Marco"]
[Black "Manukian, Artak"]
[WhiteFideId "12904392"]
[BlackFideId "13301373"]
[WhiteElo "2801"]
[BlackElo "2430"]
[Result "1-0"]
[Round "1"]
[TimeControl "180+1"]
[Date "2023.08.15"]
[WhiteClock "0:01:31"]
[BlackClock "0:01:43"]
[Board "56"]

1. e4 {[%clk 0:02:57]}  c6 {[%clk 0:02:58]} 2. c4 {[%clk 0:02:58]}  d5 {[%clk 0:02:59]} 3. exd5 {[%clk 0:02:58]}  cxd5 {[%clk 0:03:00]} 4. cxd5 {[%clk 0:02:59]}  Nf6 {[%clk 0:03:01]} 5. Nc3 {[%clk 0:03:00]}  Nxd5 {[%clk 0:03:00]} 6. Nf3 {[%clk 0:03:00]}  Nxc3 {[%clk 0:02:59]} 7. dxc3 {[%clk 0:03:00]}  Qxd1+ {[%clk 0:02:58]} 8. Kxd1 {[%clk 0:02:59]}  Bg4 {[%clk 0:02:58]} 9. Bb5+ {[%clk 0:02:57]}  Nc6 {[%clk 0:02:57]} 10. Ke2 {[%clk 0:02:57]}  O-O-O {[%clk 0:02:55]} 11. h3 {[%clk 0:02:54]}  Bxf3+ {[%clk 0:02:51]} 12. Kxf3 {[%clk 0:02:53]}  e6 {[%clk 0:02:51]} 13. Be3 {[%clk 0:02:52]}  a6 {[%clk 0:02:51]} 14. Bxc6 {[%clk 0:02:49]}  bxc6 {[%clk 0:02:51]} 15. Bb6 {[%clk 0:02:50]}  Rd5 {[%clk 0:02:49]} 16. c4 {[%clk 0:02:49]}  Rf5+ {[%clk 0:02:49]} 17. Ke2 {[%clk 0:02:49]}  Bc5 {[%clk 0:02:47]} 18. Bxc5 {[%clk 0:02:45]}  Rxc5 {[%clk 0:02:47]} 19. b3 {[%clk 0:02:46]}  Rd8 {[%clk 0:02:46]} 20. Rhd1 {[%clk 0:02:46]}  Re5+ {[%clk 0:02:40]} 21. Kf1 {[%clk 0:02:37]}  a5 {[%clk 0:02:40]} 22. Rxd8+ {[%clk 0:02:36]}  Kxd8 {[%clk 0:02:40]} 23. Re1 {[%clk 0:02:35]}  Rxe1+ {[%clk 0:02:29]} 24. Kxe1 {[%clk 0:02:36]}  c5 {[%clk 0:02:30]} 25. Kd2 {[%clk 0:02:33]}  f5 {[%clk 0:02:25]} 26. Kc3 {[%clk 0:01:33]}  Kc7 {[%clk 0:02:22]} 27. a3 {[%clk 0:01:32]}  e5 {[%clk 0:02:20]} 28. b4 {[%clk 0:01:33]}  axb4+ {[%clk 0:02:11]} 29. axb4 {[%clk 0:01:34]}  Kb6 {[%clk 0:02:04]} 30. b5 {[%clk 0:01:33]}  g6 {[%clk 0:02:01]} 31. Kd3 {[%clk 0:01:33]}  Kc7 {[%clk 0:01:59]} 32. Ke3 {[%clk 0:01:33]}  Kd6 {[%clk 0:01:59]} 33. g4 {[%clk 0:01:33]}  Ke6 {[%clk 0:01:57]} 34. gxf5+ {[%clk 0:01:33]}  gxf5 {[%clk 0:01:56]} 35. Kf3 {[%clk 0:01:33]}  h5 {[%clk 0:01:48]} 36. Kg3 {[%clk 0:01:32]}  f4+ {[%clk 0:01:45]} 37. Kf3 {[%clk 0:01:30]}  Kf5 {[%clk 0:01:45]} 38. b6 {[%clk 0:01:30]}  e4+ {[%clk 0:01:43]} 39. Ke2 {[%clk 0:01:31]} 1-0


[Site "https://www.chess.com"]

[Event "Titled Tuesday Blitz August 15 Late 2023"]
[White "Farmani Anosheh, Armin"]
[Black "Hambleton, Aman"]
[WhiteFideId "24613240"]
[BlackFideId "2606577"]
[WhiteElo "2428"]
[BlackElo "2781"]
[Result "0-1"]
[Round "1"]
[TimeControl "180+1"]
[Date "2023.08.15"]
[WhiteClock "0:00:00"]
[BlackClock "0:00:04"]
[Board "59"]

1. e4 {[%clk 0:02:59]}  b6 {[%clk 0:02:49]} 2. d4 {[%clk 0:02:57]}  Bb7 {[%clk 0:02:46]} 3. Bd3 {[%clk 0:02:58]}  e6 {[%clk 0:02:40]} 4. Nf3 {[%clk 0:02:58]}  d5 {[%clk 0:02:35]} 5. e5 {[%clk 0:02:56]}  Ba6 {[%clk 0:02:35]} 6. O-O {[%clk 0:02:45]}  Bxd3 {[%clk 0:02:35]} 7. Qxd3 {[%clk 0:02:46]}  Ne7 {[%clk 0:02:34]} 8. b3 {[%clk 0:02:45]}  Nbc6 {[%clk 0:02:04]} 9. Ba3 {[%clk 0:02:36]}  Qd7 {[%clk 0:01:31]} 10. Rd1 {[%clk 0:02:31]}  h5 {[%clk 0:01:24]} 11. c4 {[%clk 0:02:24]}  a5 {[%clk 0:01:06]} 12. Nc3 {[%clk 0:01:40]}  Nb4 {[%clk 0:01:06]} 13. Qe2 {[%clk 0:01:29]}  Nf5 {[%clk 0:00:44]} 14. Bb2 {[%clk 0:01:24]}  c6 {[%clk 0:00:37]} 15. a3 {[%clk 0:01:17]}  Na6 {[%clk 0:00:38]} 16. Bc1 {[%clk 0:00:42]}  Nc7 {[%clk 0:00:33]} 17. Bg5 {[%clk 0:00:19]}  Be7 {[%clk 0:00:16]} 18. Bxe7 {[%clk 0:00:18]}  Qxe7 {[%clk 0:00:14]} 19. Qc2 {[%clk 0:00:18]}  O-O {[%clk 0:00:12]} 20. Qd2 {[%clk 0:00:17]}  Rfd8 {[%clk 0:00:07]} 21. Qf4 {[%clk 0:00:17]}  dxc4 {[%clk 0:00:04]} 22. bxc4 {[%clk 0:00:17]}  b5 {[%clk 0:00:05]} 23. d5 {[%clk 0:00:12]}  cxd5 {[%clk 0:00:02]} 24. cxd5 {[%clk 0:00:12]}  b4 {[%clk 0:00:02]} 25. d6 {[%clk 0:00:12]}  Qf8 {[%clk 0:00:02]} 26. dxc7 {[%clk 0:00:09]}  Rxd1+ {[%clk 0:00:02]} 27. Nxd1 {[%clk 0:00:09]}  bxa3 {[%clk 0:00:02]} 28. Ne3 {[%clk 0:00:08]}  Ne7 {[%clk 0:00:02]} 29. Qc4 {[%clk 0:00:08]}  Rc8 {[%clk 0:00:02]} 30. h4 {[%clk 0:00:08]}  g6 {[%clk 0:00:02]} 31. Rxa3 {[%clk 0:00:07]}  Nd5 {[%clk 0:00:02]} 32. Rxa5 {[%clk 0:00:06]}  Rxc7 {[%clk 0:00:02]} 33. Qd4 {[%clk 0:00:04]}  Ne7 {[%clk 0:00:02]} 34. Qe4 {[%clk 0:00:02]}  Kg7 {[%clk 0:00:02]} 35. Kh2 {[%clk 0:00:03]}  Qd8 {[%clk 0:00:02]} 36. g3 {[%clk 0:00:02]}  Rc8 {[%clk 0:00:02]} 37. Ra7 {[%clk 0:00:02]}  Nc6 {[%clk 0:00:02]} 38. Ra4 {[%clk 0:00:01]}  Rb8 {[%clk 0:00:02]} 39. Qf4 {[%clk 0:00:01]}  Ne7 {[%clk 0:00:02]} 40. Qf6+ {[%clk 0:00:01]}  Kg8 {[%clk 0:00:03]} 41. Rf4 {[%clk 0:00:02]}  Qe8 {[%clk 0:00:03]} 42. Ng5 {[%clk 0:00:01]}  Rb7 {[%clk 0:00:02]} 43. Nxf7 {[%clk 0:00:01]}  Nd5 {[%clk 0:00:02]} 44. Nh6+ {[%clk 0:00:01]}  Kh7 {[%clk 0:00:02]} 45. Qg5 {[%clk 0:00:01]}  Nxf4 {[%clk 0:00:02]} 46. gxf4 {[%clk 0:00:01]}  Rb2 {[%clk 0:00:02]} 47. f5 {[%clk 0:00:02]}  exf5 {[%clk 0:00:02]} 48. Kg3 {[%clk 0:00:02]}  Rb3 {[%clk 0:00:02]} 49. Kh2 {[%clk 0:00:02]}  Qxe5+ {[%clk 0:00:03]} 50. Kg2 {[%clk 0:00:02]}  Qg7 {[%clk 0:00:03]} 51. Kh2 {[%clk 0:00:03]}  Qxh6 {[%clk 0:00:03]} 52. Qe7+ {[%clk 0:00:03]}  Qg7 {[%clk 0:00:04]} 53. Qe5 {[%clk 0:00:00]}  Qxe5+ {[%clk 0:00:04]} 0-1


[Site "https://www.chess.com"]